fUSD/lending_fUSD_20260621
["ID","MTS","AMOUNT","RATE_DAILY","PERIOD"]
[425879888,1782016326000,-500.0,0.00029589,2]
[425879884,1782016326000,-500.0,0.00029589,2]
[425879890,1782016326000,-505.28264507,0.00029589,2]
[425879897,1782016326000,-500.0,0.00029589,2]
[425879892,1782016326000,-500.0,0.00029589,2]
[425879891,1782016326000,-500.0,0.00029589,2]
[425879900,1782016326000,-500.0,0.00029589,2]
[425879899,1782016326000,-500.0,0.00029589,2]
[425879898,1782016326000,-500.0,0.00029589,2]
[425879894,1782016326000,-500.0,0.00029589,2]
[425879896,1782016326000,-500.0,0.00029589,2]
[425879893,1782016326000,-500.0,0.00029589,2]
[425879861,1782016326000,-500.0,0.00029589,2]
[425879881,1782016326000,-500.0,0.00029589,2]
[425879882,1782016326000,-500.0,0.00029589,2]
[425879895,1782016326000,-500.0,0.00029589,2]
[425879889,1782016326000,-918.67,0.00029589,2]
[425879867,1782016326000,-607.83,0.00029589,2]
[425879883,1782016326000,-500.0,0.00029589,2]
[425879869,1782016326000,-500.0,0.00029589,2]
[425879870,1782016326000,-500.0,0.00029589,2]
[425879875,1782016326000,-623.49,0.00029589,2]
[425879877,1782016326000,-647.43,0.00029589,2]
[425879873,1782016326000,-685.15,0.00029589,2]
[425879874,1782016326000,-500.0,0.00029589,2]
[425879872,1782016326000,-500.0,0.00029589,2]
[425879871,1782016326000,-500.0,0.00029589,2]
[425879868,1782016326000,-782.79,0.00029589,2]
[425879876,1782016326000,-500.0,0.00029589,2]
[425879878,1782016326000,-500.0,0.00029589,2]
[425879880,1782016326000,-208.176751,0.00029589,7]
[425879879,1782016326000,-500.0,0.00029589,2]
[425879885,1782016326000,-772.71,0.00029589,2]
[425879912,1782016327000,-249.17969368,0.00029589,2]
[425879917,1782016327000,-500.0,0.00029589,2]
[425879916,1782016327000,-564.52702479,0.00029589,2]
[425879922,1782016327000,-832.58,0.00029589,2]
[425879918,1782016327000,-495.29917606,0.00029589,2]
[425879914,1782016327000,-642.10071989,0.00029489,2]
[425879913,1782016327000,-9.05297521,0.00029589,2]
[425879921,1782016327000,-500.0,0.00029589,2]
[425879909,1782016327000,-500.0,0.00029589,2]
[425879903,1782016327000,-500.0,0.00029589,2]
[425879905,1782016327000,-500.0,0.00029589,2]
[425879907,1782016327000,-500.0,0.00029589,2]
[425879910,1782016327000,-500.0,0.00029589,2]
[425879906,1782016327000,-500.0,0.00029589,2]
[425879904,1782016327000,-500.0,0.00029589,2]
[425879901,1782016327000,-500.0,0.00029589,2]
[425879902,1782016327000,-500.0,0.00029589,2]
[425879919,1782016327000,-4.70082394,0.00029589,2]
[425879911,1782016327000,-250.82030632,0.00029589,2]
[425879915,1782016327000,-1751.54952976,0.00029489,2]
[425879908,1782016327000,-500.0,0.00029589,2]
[425879924,1782016327000,-797.65,0.00029589,2]
[425879943,1782016327000,-500.0,0.00029589,2]
[425879941,1782016327000,-747.33,0.00029589,2]
[425879942,1782016327000,-389.74844786,0.00029589,2]
[425879940,1782016327000,-500.0,0.00029589,2]
[425879936,1782016327000,-500.0,0.00029589,2]
[425879939,1782016327000,-495.26930094,0.00029589,2]
[425879938,1782016327000,-483.3661047,0.00029589,2]
[425879937,1782016327000,-500.0,0.00029589,2]
[425879935,1782016327000,-500.0,0.00029589,2]
[425879933,1782016327000,-500.0,0.00029589,2]
[425879920,1782016327000,-556.17,0.00029589,2]
[425879930,1782016327000,-500.0,0.00029589,2]
[425879928,1782016327000,-500.0,0.00029589,2]
[425879926,1782016327000,-500.0,0.00029589,2]
[425879925,1782016327000,-616.72,0.00029589,2]
[425879927,1782016327000,-500.0,0.00029589,2]
[425879932,1782016327000,-508.2114324,0.00029589,2]
[425879929,1782016327000,-500.0,0.00029589,2]
[425879931,1782016327000,-500.0,0.00029589,2]
[425879923,1782016327000,-500.0,0.00029589,2]
[425879934,1782016327000,-500.0,0.00029589,2]
[425879944,1782016328000,-951.86,0.00029589,2]
[425879945,1782016328000,-500.0,0.00029589,2]
[425879946,1782016328000,-428.68653084,0.00029589,2]
[425879948,1782016328000,-500.0,0.00029589,2]
[425879949,1782016328000,-500.0,0.00029589,2]
[425879947,1782016328000,-71.31346916,0.00029589,2]
[425879952,1782016328000,-500.0,0.00029589,2]
[425879956,1782016328000,-229.67722765,0.00029589,2]
[425879954,1782016328000,-430.54370226,0.00029589,2]
[425879950,1782016328000,-500.0,0.00029589,2]
[425879951,1782016328000,-500.0,0.00029589,2]
[425879955,1782016328000,-69.45629774,0.00029589,2]
[425879953,1782016328000,-500.0,0.00029589,2]
[425879957,1782016330000,189.5505187,0.00012963,2]
[425879961,1782016331000,700.0,0.000129,4]
[425879959,1782016331000,400.0,0.000128,4]
[425879958,1782016331000,200.0,0.000127,4]
[425879960,1782016331000,319.7850931,0.00012808,2]
[425879962,1782016332000,1000.0,0.00012972,2]
[425879963,1782016334000,231.25,0.00012333,2]
[425879965,1782016335000,172.27260151,0.00012172,2]
[425879964,1782016335000,192.61131107,0.00012173,2]
[425879966,1782016336000,2053.285609,0.00012851,2]
[425879967,1782016338000,200.0,0.000127,4]
[425879968,1782016339000,150.0,0.00012172,2]
[425879969,1782016339000,400.0,0.000128,4]
[425879971,1782016366000,248.74673811,0.000129,4]
[425879970,1782016366000,451.25326189,0.000129,4]
[425879972,1782016367000,151.0,0.0001263,2]
[425879973,1782016384000,353.99884534,0.0001,2]
[425879976,1782016387000,150.0,0.00010299,2]
[425879975,1782016387000,150.0,0.00010199,2]
[425879974,1782016387000,150.0,0.00010099,2]
[425879977,1782016390000,-174.0,0.0001397,2]
[425879978,1782016393000,-174.0,0.00012972,2]
[425879980,1782016397000,-19.0,0.0001397,2]
[425879981,1782016397000,-129.58139555,0.0001397,2]
[425879982,1782016397000,308.5824192,0.00012973,2]
[425879979,1782016397000,-25.41860445,0.00012972,2]
[425879984,1782016409000,1084.06,0.00012713,2]
[425879983,1782016409000,230.734,0.00012713,2]
[425879990,1782016420000,627.49754448,0.00012629,2]
[425879985,1782016420000,500.0,0.00012629,2]
[425879986,1782016420000,500.0,0.00012629,2]
[425879987,1782016420000,500.0,0.00012629,2]
[425879988,1782016420000,500.0,0.00012629,2]
[425879989,1782016420000,500.0,0.00012629,2]
[425879991,1782016420000,500.0,0.00012629,2]
[425879994,1782016420000,500.0,0.00012629,2]
[425879993,1782016420000,500.0,0.00012629,2]
[425879995,1782016420000,500.0,0.00012629,2]
[425879996,1782016420000,500.0,0.00012629,2]
[425879997,1782016420000,500.0,0.00012629,2]
[425879998,1782016420000,500.0,0.00012629,2]
[425879999,1782016420000,500.0,0.00012629,2]
[425879992,1782016420000,500.0,0.00012629,2]
[425880008,1782016421000,500.0,0.00012629,2]
[425880007,1782016421000,500.0,0.00012629,2]
[425880006,1782016421000,500.0,0.00012629,2]
[425880005,1782016421000,500.0,0.00012629,2]
[425880001,1782016421000,500.0,0.00012629,2]
[425880003,1782016421000,500.0,0.00012629,2]
[425880002,1782016421000,500.0,0.00012629,2]
[425880000,1782016421000,500.0,0.00012629,2]
[425880009,1782016421000,500.0,0.00012629,2]
[425880004,1782016421000,500.0,0.00012629,2]
[425880011,1782016421000,500.0,0.00012629,2]
[425880019,1782016421000,500.0,0.00012629,2]
[425880012,1782016421000,409.7459207,0.00012629,2]
[425880021,1782016421000,500.0,0.00012629,2]
[425880020,1782016421000,500.0,0.00012629,2]
[425880022,1782016421000,500.0,0.00012629,2]
[425880018,1782016421000,500.0,0.00012629,2]
[425880010,1782016421000,500.0,0.00012629,2]
[425880016,1782016421000,500.0,0.00012629,2]
[425880014,1782016421000,500.0,0.00012629,2]
[425880015,1782016421000,500.0,0.00012629,2]
[425880013,1782016421000,500.0,0.00012629,2]
[425880017,1782016421000,500.0,0.00012629,2]
[425880023,1782016422000,500.0,0.00012629,2]
[425880025,1782016422000,500.0,0.00012629,2]
[425880024,1782016422000,500.0,0.00012629,2]
[425880027,1782016422000,500.0,0.00012629,2]
[425880028,1782016422000,500.0,0.00012629,2]
[425880029,1782016422000,500.0,0.00012629,2]
[425880026,1782016422000,500.0,0.00012629,2]
[425880030,1782016530000,-6351.42597607,0.00012972,8]
[425880031,1782016547000,-150.0,0.00012972,2]
[425880032,1782016597000,-500.0,0.00012971,2]
[425880033,1782016599000,263.07150434,0.00012873,2]
[425880034,1782016630000,294.0053955,0.00012874,2]
[425880035,1782016651000,-260.25321725,0.0001297,2]
[425880036,1782016704000,-500.0,0.0001297,2]
[425880037,1782016723000,175.21748836,0.00012869,2]
[425880038,1782016728000,175.21748834,0.00012872,2]
[425880039,1782016734000,175.21748834,0.00012875,2]
[425880040,1782016757000,-536.25291893,0.00012969,2]
[425880041,1782016759000,229.50222351,0.00012875,2]
[425880042,1782016760000,196.003597,0.00012875,2]
[425880043,1782016811000,-500.0,0.00012969,2]
[425880044,1782016865000,-201.45768921,0.00012963,2]
[425880047,1782016918000,-500.0,0.00012968,2]
[425880048,1782016920000,664.31512477,0.00012876,2]
[425880049,1782016982000,175.3810029,0.00012878,2]
[425880050,1782017009000,6452.816,0.00012713,2]
[425880051,1782017009000,257.894,0.00012713,2]
[425880052,1782017016000,196.00359698,0.00012878,2]
[425880053,1782017050000,1137.00457439,0.00012878,2]
[425880054,1782017136000,196.00359698,0.00012879,2]
[425880055,1782017139000,1366.14379364,0.00012879,2]
[425880056,1782017222000,-182.17725207,0.00012967,2]
[425880057,1782017227000,300.0,0.000127,4]
[425880058,1782017229000,600.0,0.000128,4]
[425880059,1782017231000,1000.0,0.000129,4]
[425880060,1782017275000,-180.8330605,0.00012967,2]
[425880061,1782017329000,-583.74839598,0.00012966,2]
[425880062,1782017382000,-189.14154533,0.00012965,2]
[425880063,1782017384000,859019.4207,0.00012873,2]
[425880072,1782017436000,-500.0,0.00012965,2]
[425880086,1782017438000,-500.0,0.00012965,2]
[425880082,1782017438000,-500.0,0.00012965,2]
[425880081,1782017438000,-375.37704326,0.00012965,2]
[425880083,1782017438000,-211.95473399,0.00012965,2]
[425880085,1782017438000,-438.71407621,0.00012965,2]
[425880088,1782017438000,-500.0,0.00012965,2]
[425880084,1782017438000,-408.62387719,0.00012965,2]
[425880091,1782017438000,-500.0,0.00012965,2]
[425880087,1782017438000,-500.0,0.00012965,2]
[425880093,1782017438000,-500.0,0.00012965,2]
[425880092,1782017438000,-500.0,0.00012965,2]
[425880095,1782017438000,-500.0,0.00012965,2]
[425880090,1782017438000,-221.80182521,0.00012965,2]
[425880094,1782017438000,-500.0,0.00012965,2]
[425880089,1782017438000,-306.71763003,0.00012965,2]
[425880126,1782017439000,-576.10235044,0.00012965,2]
[425880127,1782017439000,-500.0,0.00012965,2]
[425880125,1782017439000,-576.10235044,0.00012965,2]
[425880130,1782017439000,-500.0,0.00012965,2]
[425880134,1782017439000,-576.10235044,0.00012965,2]
[425880131,1782017439000,-500.0,0.00012965,2]
[425880132,1782017439000,-576.10235044,0.00012965,2]
[425880133,1782017439000,-576.10235044,0.00012965,2]
[425880136,1782017439000,-576.10235044,0.00012965,2]
[425880135,1782017439000,-576.10235044,0.00012965,2]
[425880140,1782017439000,-576.10235044,0.00012965,2]
[425880142,1782017439000,-576.10235044,0.00012965,2]
[425880139,1782017439000,-576.10235044,0.00012965,2]
[425880138,1782017439000,-576.10235044,0.00012965,2]
[425880137,1782017439000,-500.0,0.00012965,2]
[425880128,1782017439000,-500.0,0.00012965,2]
[425880141,1782017439000,-576.10235044,0.00012965,2]
[425880144,1782017439000,-576.10235044,0.00012965,2]
[425880147,1782017439000,-576.10235044,0.00012965,2]
[425880146,1782017439000,-185.54624658,0.00012965,2]
[425880143,1782017439000,-500.0,0.00012965,2]
[425880145,1782017439000,-576.10235044,0.00012965,2]
[425880149,1782017439000,-576.10235044,0.00012965,2]
[425880148,1782017439000,-576.10235044,0.00012965,2]
[425880150,1782017439000,-500.0,0.00012965,2]
[425880152,1782017439000,-576.10235044,0.00012965,2]
[425880153,1782017439000,-576.10235044,0.00012965,2]
[425880129,1782017439000,-576.10235044,0.00012965,2]
[425880121,1782017439000,-576.10235044,0.00012965,2]
[425880124,1782017439000,-576.10235044,0.00012965,2]
[425880151,1782017439000,-576.10235044,0.00012965,2]
[425880096,1782017439000,-500.0,0.00012965,2]
[425880098,1782017439000,-500.0,0.00012965,2]
[425880097,1782017439000,-500.0,0.00012965,2]
[425880099,1782017439000,-500.0,0.00012965,2]
[425880104,1782017439000,-500.0,0.00012965,2]
[425880100,1782017439000,-576.10235044,0.00012965,2]
[425880103,1782017439000,-500.0,0.00012965,2]
[425880106,1782017439000,-500.0,0.00012965,2]
[425880102,1782017439000,-500.0,0.00012965,2]
[425880101,1782017439000,-500.0,0.00012965,2]
[425880105,1782017439000,-500.0,0.00012965,2]
[425880107,1782017439000,-576.10235044,0.00012965,2]
[425880109,1782017439000,-500.0,0.00012965,2]
[425880108,1782017439000,-500.0,0.00012965,2]
[425880110,1782017439000,-500.0,0.00012965,2]
[425880112,1782017439000,-576.10235044,0.00012965,2]
[425880111,1782017439000,-500.0,0.00012965,2]
[425880113,1782017439000,-576.10235044,0.00012965,2]
[425880114,1782017439000,-576.10235044,0.00012965,2]
[425880118,1782017439000,-576.10235044,0.00012965,2]
[425880116,1782017439000,-500.0,0.00012965,2]
[425880115,1782017439000,-500.0,0.00012965,2]
[425880117,1782017439000,-500.0,0.00012965,2]
[425880122,1782017439000,-576.10235044,0.00012965,2]
[425880119,1782017439000,-500.0,0.00012965,2]
[425880120,1782017439000,-500.0,0.00012965,2]
[425880123,1782017439000,-500.0,0.00012965,2]
[425880154,1782017439000,-576.10235044,0.00012965,2]
[425880169,1782017439000,-576.10235044,0.00012965,2]
[425880158,1782017439000,-576.10235044,0.00012965,2]
[425880188,1782017439000,-160.0,0.00012982,2]
[425880191,1782017439000,-500.0,0.00013698,2]
[425880184,1782017439000,-150.0,0.00012968,2]
[425880196,1782017439000,-500.0,0.00013698,2]
[425880195,1782017439000,-500.0,0.00013698,2]
[425880192,1782017439000,-500.0,0.00013698,2]
[425880194,1782017439000,-608.02329171,0.00013698,2]
[425880193,1782017439000,-505.19198669,0.00013698,2]
[425880198,1782017439000,-592.08,0.00013698,2]
[425880199,1782017439000,-507.95738784,0.00013698,2]
[425880203,1782017439000,-500.0,0.00013698,2]
[425880201,1782017439000,-500.0,0.00013698,2]
[425880197,1782017439000,-500.0,0.00013698,2]
[425880200,1782017439000,-500.0,0.00013698,2]
[425880202,1782017439000,-500.0,0.00013698,2]
[425880205,1782017439000,-562.28,0.00013698,2]
[425880156,1782017439000,-576.10235044,0.00012965,2]
[425880206,1782017439000,-562.28,0.00013698,2]
[425880208,1782017439000,-562.28,0.00013698,2]
[425880207,1782017439000,-562.28,0.00013698,2]
[425880210,1782017439000,-562.28,0.00013698,2]
[425880215,1782017439000,-562.28,0.00013698,2]
[425880209,1782017439000,-562.28,0.00013698,2]
[425880211,1782017439000,-562.28,0.00013698,2]
[425880212,1782017439000,-562.28,0.00013698,2]
[425880216,1782017439000,-562.28,0.00013698,2]
[425880214,1782017439000,-562.28,0.00013698,2]
[425880189,1782017439000,-500.0,0.00013698,2]
[425880185,1782017439000,-831.53404831,0.00012969,2]
[425880204,1782017439000,-208.32,0.00013698,2]
[425880186,1782017439000,-3661.23985597,0.00012972,8]
[425880190,1782017439000,-500.0,0.00013698,2]
[425880157,1782017439000,-576.10235044,0.00012965,2]
[425880155,1782017439000,-576.10235044,0.00012965,2]
[425880160,1782017439000,-576.10235044,0.00012965,2]
[425880159,1782017439000,-576.10235044,0.00012965,2]
[425880162,1782017439000,-576.10235044,0.00012965,2]
[425880165,1782017439000,-576.10235044,0.00012965,2]
[425880164,1782017439000,-576.10235044,0.00012965,2]
[425880163,1782017439000,-576.10235044,0.00012965,2]
[425880166,1782017439000,-576.10235044,0.00012965,2]
[425880168,1782017439000,-576.10235044,0.00012965,2]
[425880167,1782017439000,-576.10235044,0.00012965,2]
[425880170,1782017439000,-2054.35780588,0.00012965,2]
[425880161,1782017439000,-576.10235044,0.00012965,2]
[425880173,1782017439000,-2054.35780588,0.00012965,2]
[425880187,1782017439000,-160.0,0.00012982,2]
[425880171,1782017439000,-2054.35780588,0.00012965,2]
[425880183,1782017439000,-216.32317309,0.00012966,2]
[425880182,1782017439000,-2054.35780588,0.00012965,2]
[425880181,1782017439000,-2054.35780588,0.00012965,2]
[425880178,1782017439000,-2054.35780588,0.00012965,2]
[425880180,1782017439000,-2054.35780588,0.00012965,2]
[425880176,1782017439000,-2054.35780588,0.00012965,2]
[425880177,1782017439000,-2054.35780588,0.00012965,2]
[425880175,1782017439000,-2054.35780588,0.00012965,2]
[425880174,1782017439000,-2054.35780588,0.00012965,2]
[425880172,1782017439000,-2054.35780588,0.00012965,2]
[425880179,1782017439000,-2054.35780588,0.00012965,2]
[425880239,1782017440000,-562.28,0.00014999,2]
[425880244,1782017440000,-250.0,0.00015262,2]
[425880240,1782017440000,-562.28,0.00014999,2]
[425880241,1782017440000,-562.28,0.00014999,2]
[425880242,1782017440000,-562.5,0.00014999,2]
[425880243,1782017440000,-151.30166492,0.00015068,2]
[425880245,1782017440000,-314.99857486,0.00016,2]
[425880246,1782017440000,-500.0,0.00016438,2]
[425880254,1782017440000,-500.0,0.00016438,2]
[425880249,1782017440000,-500.0,0.00016438,2]
[425880248,1782017440000,-500.0,0.00016438,2]
[425880250,1782017440000,-500.0,0.00016438,2]
[425880251,1782017440000,-500.0,0.00016438,2]
[425880252,1782017440000,-500.0,0.00016438,2]
[425880253,1782017440000,-500.0,0.00016438,2]
[425880238,1782017440000,-562.28,0.00014999,2]
[425880247,1782017440000,-500.0,0.00016438,2]
[425880236,1782017440000,-562.28,0.00014999,2]
[425880217,1782017440000,-1300.0,0.000139,5]
[425880235,1782017440000,-562.28,0.00014999,2]
[425880256,1782017440000,-500.0,0.00016438,2]
[425880219,1782017440000,-151.0,0.0001397,2]
[425880221,1782017440000,-153.0,0.0001397,2]
[425880218,1782017440000,-153.0,0.0001397,2]
[425880220,1782017440000,-151.0,0.0001397,2]
[425880223,1782017440000,-151.0,0.0001397,2]
[425880222,1782017440000,-150.43612649,0.0001397,2]
[425880237,1782017440000,-562.28,0.00014999,2]
[425880226,1782017440000,-562.28,0.00014199,2]
[425880224,1782017440000,-151.0,0.0001397,2]
[425880228,1782017440000,-1366.14379358,0.00014755,2]
[425880227,1782017440000,-370.41860445,0.00014262,2]
[425880229,1782017440000,-562.28,0.00014999,2]
[425880231,1782017440000,-562.28,0.00014999,2]
[425880234,1782017440000,-562.28,0.00014999,2]
[425880233,1782017440000,-562.28,0.00014999,2]
[425880225,1782017440000,-250.0,0.00014,2]
[425880257,1782017440000,-500.0,0.00016438,2]
[425880293,1782017440000,-3462.64155833,0.0002,2]
[425880258,1782017440000,-500.0,0.00016438,2]
[425880278,1782017440000,-861.69,0.00018621,2]
[425880280,1782017440000,-166.66,0.00018783,2]
[425880281,1782017440000,-389.11270395,0.00018792,2]
[425880284,1782017440000,-166.66,0.00019163,2]
[425880283,1782017440000,-200.0,0.00018814,2]
[425880285,1782017440000,-166.66,0.00019542,2]
[425880282,1782017440000,-1155.47709206,0.00018792,2]
[425880279,1782017440000,-294.09,0.00018669,2]
[425880286,1782017440000,-166.66,0.00019922,2]
[425880292,1782017440000,-1085.91973813,0.0002,2]
[425880289,1782017440000,-240.942754,0.0002,2]
[425880291,1782017440000,-155.0,0.0002,2]
[425880290,1782017440000,-236.0,0.0002,2]
[425880295,1782017440000,-3520.14920697,0.0002,2]
[425880294,1782017440000,-554.40348198,0.0002,2]
[425880255,1782017440000,-500.0,0.00016438,2]
[425880288,1782017440000,-228.0,0.0002,2]
[425880277,1782017440000,-166.66,0.00018548,2]
[425880287,1782017440000,-204.0,0.0002,2]
[425880274,1782017440000,-1366.14379358,0.00018507,2]
[425880276,1782017440000,-467.25,0.00018539,2]
[425880260,1782017440000,-196.47986992,0.00016438,2]
[425880259,1782017440000,-500.0,0.00016438,2]
[425880261,1782017440000,-1500.0,0.000166,2]
[425880265,1782017440000,-500.0,0.00017288,2]
[425880264,1782017440000,-1555.5,0.00017148,2]
[425880262,1782017440000,-1137.0045743,0.0001663,2]
[425880267,1782017440000,-1613.0535,0.00017696,2]
[425880263,1782017440000,-1366.14379358,0.00016631,2]
[425880268,1782017440000,-199.5,0.00017968,2]
[425880270,1782017440000,-150.0,0.00018238,2]
[425880269,1782017440000,-166.66,0.00018024,2]
[425880266,1782017440000,-277.69,0.000175,7]
[425880272,1782017440000,-166.66,0.00018404,2]
[425880271,1782017440000,-1672.7364795,0.00018244,2]
[425880273,1782017440000,-1137.0045743,0.00018506,2]
[425880275,1782017440000,-452.84,0.00018517,2]
[425880327,1782017442000,-151.0,0.00020984,2]
[425880328,1782017442000,-500.0,0.00020984,2]
[425880326,1782017442000,-500.0,0.00020984,2]
[425880323,1782017442000,-151.0,0.00020984,2]
[425880322,1782017442000,-500.0,0.00020984,2]
[425880324,1782017442000,-500.0,0.00020984,2]
[425880321,1782017442000,-151.0,0.00020984,2]
[425880329,1782017442000,-151.0,0.00020984,2]
[425880325,1782017442000,-151.0,0.00020984,2]
[425880330,1782017442000,-500.0,0.00020984,2]
[425880340,1782017442000,-155.0,0.00021,2]
[425880333,1782017442000,-500.0,0.00020984,2]
[425880334,1782017442000,-151.0,0.00020984,2]
[425880335,1782017442000,-151.0,0.00020984,2]
[425880331,1782017442000,-151.0,0.00020984,2]
[425880337,1782017442000,-204.0,0.00021,2]
[425880336,1782017442000,-151.0,0.00020984,2]
[425880338,1782017442000,-228.0,0.00021,2]
[425880342,1782017442000,-294.09,0.00021003,2]
[425880317,1782017442000,-151.0,0.00020984,2]
[425880332,1782017442000,-500.0,0.00020984,2]
[425880318,1782017442000,-500.0,0.00020984,2]
[425880302,1782017442000,-190.66868644,0.0002,2]
[425880320,1782017442000,-500.0,0.00020984,2]
[425880296,1782017442000,-45884.91601459,0.0002,2]
[425880298,1782017442000,-512.0,0.0002,2]
[425880299,1782017442000,-190.66868644,0.0002,2]
[425880297,1782017442000,-195.0,0.0002,2]
[425880339,1782017442000,-236.0,0.00021,2]
[425880300,1782017442000,-190.66868644,0.0002,2]
[425880301,1782017442000,-190.66868644,0.0002,2]
[425880303,1782017442000,-190.66868648,0.0002,2]
[425880304,1782017442000,-477.22,0.0002,2]
[425880306,1782017442000,-1366.14379358,0.00020383,2]
[425880308,1782017442000,-1510.42861616,0.000207,2]
[425880305,1782017442000,-1137.0045743,0.00020382,2]
[425880307,1782017442000,-150.29868404,0.0002058,2]
[425880309,1782017442000,-185.8594522,0.00020886,2]
[425880311,1782017442000,-202.78494733,0.00020984,2]
[425880310,1782017442000,-1510.42861616,0.000209,2]
[425880313,1782017442000,-500.0,0.00020984,2]
[425880315,1782017442000,-500.0,0.00020984,2]
[425880314,1782017442000,-151.0,0.00020984,2]
[425880312,1782017442000,-239.17160856,0.00020984,2]
[425880316,1782017442000,-500.0,0.00020984,2]
[425880319,1782017442000,-151.0,0.00020984,2]
[425880343,1782017442000,-1510.42861616,0.000211,2]
[425880341,1782017442000,-195.0,0.00021,2]
[425880346,1782017442000,-172.53233442,0.00021487,4]
[425880367,1782017442000,-159.0,0.00022,2]
[425880373,1782017442000,-1510.42861616,0.000224,2]
[425880376,1782017442000,-1510.42861616,0.000227,2]
[425880374,1782017442000,-150.0,0.0002254,2]
[425880379,1782017442000,-204.0,0.00023,2]
[425880377,1782017442000,-249.0,0.00022968,2]
[425880375,1782017442000,-512.0,0.00022609,4]
[425880380,1782017442000,-228.0,0.00023,2]
[425880381,1782017442000,-236.0,0.00023,2]
[425880382,1782017442000,-195.0,0.00023,2]
[425880371,1782017442000,-1137.0045743,0.00022259,2]
[425880383,1782017442000,-28788.62,0.00023221,7]
[425880384,1782017442000,-294.09,0.00023336,2]
[425880386,1782017442000,-3337.05,0.00023368,2]
[425880388,1782017442000,-3695.37,0.00023368,2]
[425880389,1782017442000,-150.0,0.00023667,2]
[425880387,1782017442000,-5176.56,0.00023368,2]
[425880390,1782017442000,-159.78318307,0.00023787,2]
[425880347,1782017442000,-500.0,0.00021487,4]
[425880393,1782017442000,-236.0,0.00024,2]
[425880394,1782017442000,-195.0,0.00024,2]
[425880392,1782017442000,-228.0,0.00024,2]
[425880385,1782017442000,-150.99,0.00023368,2]
[425880372,1782017442000,-1366.14379358,0.00022259,2]
[425880391,1782017442000,-204.0,0.00024,2]
[425880368,1782017442000,-195.0,0.00022,2]
[425880345,1782017442000,-1510.42861616,0.000214,2]
[425880344,1782017442000,-9845.11,0.00021273,2]
[425880348,1782017442000,-500.0,0.00021487,4]
[425880349,1782017442000,-150.0,0.00021487,4]
[425880351,1782017442000,-150.0,0.00021487,2]
[425880352,1782017442000,-150.0,0.00021487,4]
[425880370,1782017442000,-1510.42861616,0.000222,2]
[425880350,1782017442000,-395.71558402,0.00021487,4]
[425880354,1782017442000,-200.0,0.00021504,2]
[425880359,1782017442000,-1510.42861616,0.000218,2]
[425880353,1782017442000,-208.95657455,0.00021487,4]
[425880358,1782017442000,-245.49673122,0.00021706,2]
[425880357,1782017442000,-40929.58,0.0002161,2]
[425880356,1782017442000,-1510.42861616,0.000216,2]
[425880361,1782017442000,-6500.86,0.00021878,2]
[425880363,1782017442000,-1510.42861616,0.00022,2]
[425880364,1782017442000,-204.0,0.00022,2]
[425880365,1782017442000,-228.0,0.00022,2]